Workbook

Sheet MSU
B1: Sebastian Jaakkola | E1: 24.9.1987 Loimaa
B2: SUPERPESIS | E2: Runkosarja | I2: Kärkilyönnit (KL), pesänvälit | P2: Runkosarja TOP-30 | U2: Alempi loppusarja | AB2: Ylempi loppusarja TOP-10 | AG2: Play off, voitot, voittoprosentti | AL2: Arvo-ottelut | AO2: Mitalit
B3: Vuosi | C3: Sija | D3: Seura | E3: OTT | F3: KUN | G3: LÖI | H3: TOI | I3: KL | J3: 0 > 1 | K3: 1 > 2 | L3: 2 > 3 | M3: 3 > k | N3: KL-% | P3: LÖI | Q3: TOI | R3: L+T | S3: KL | U3: OTT | V3: KUN | W3: LÖI | X3: TOI | Y3: KL | Z3: KL-% | AB3: LÖI | AC3: TOI | AD3: L+T | AE3: KL | AG3: Puolivälierät | AH3: Välierät | AI3: Pronssi | AJ3: Finaalit | AL3: IL | AM3: LL | AN3: hSM | AO3: K | AP3: H | AQ3: P
B4: 2009 | C4: 6. | D4: LP Jun | F4: suomensarja
B5: 2010 | C5: 4. | D5: LP Jun | F5: suomensarja
B6: 2011 | C6: 1. | D6: LP Jun | F6: suomensarja
B7: 2012 | C7: 1. | D7: LP Jun | F7: suomensarja
B8: 2013 | C8: 10. | D8: LP Jun | F8: ykköspesis
B9: 2014 | C9: 12. | D9: LP Jun | F9: ykköspesis
B10: 2015 | C10: 1. | D10: LP Jun | F10: suomensarja
B11: 2016 | C11: 7. | D11: PöU | F11: ykköspesis
B12: 2017 | C12: 3. | D12: PöU | F12: ykköspesis | U12: 3 | V12: 0 | W12: 0 | X12: 1 | Y12: 10 | Z12: 55.6 %
B13: 2018 | C13: 1. | D13: LP Jun | F13: suomensarja
B14: 2019 | C14: 1. | D14: LP | F14: suomensarja
B15: ****
B16: 2023 | C16: 12. | D16: LP Jun | F16: ykköspesis
B17: Yhteensä | E17: =SUM(E7:E16) -> 0 | F17: 0 | G17: 0 | H17: 0 | I17: 0 | J17: 0 | K17: 0 | L17: 0 | M17: 0 | O17: =SUM(O7:O16) -> 0 | P17: 0-0-0 | Q17: 0-0-0 | R17: 0-0-0 | S17: 0-0-0 | U17: 3 | V17: 0 | W17: 0 | X17: 1 | Y17: 10 | Z17: 55.6 % | AA17: =SUM(AA3:AA16) -> 0 | AB17: 0-0-0 | AC17: 0-0-0 | AD17: 0-0-0 | AE17: 0-0-0 | AG17: 0/0 | AH17: 0/0 | AI17: 0/0 | AJ17: 0/0 | AL17: =SUM(AL4:AL16) -> 0 | AM17: 0 | AN17: 0 | AO17: 0 | AP17: 0 | AQ17: 0
AG18: 0.0 % | AH18: 0.0 % | AI18: 0.0 % | AJ18: 0.0 %
B19: Pesispörssi | D19: =SUM(F17:H17)+((I17-F17-G17)/3)+(E17/3)+(AL17*25)+(AM17*25)+(AN17*10)+(AO17*25)+(AP17*20)+(AQ17*15) -> 0.0
B21: URA SUPERISSA | E21: OTT | F21: KUN | G21: LÖI | H21: TOI | I21: KL | K21: ka/L | L21: ka/T | M21: ka/KL | N21: KL-% | P21: ENSIMMÄISET RUNKOSARJASSA | AG21: ENSIMMÄISET PUDOTUSPELEISSÄ
B22: Runkosarja | P22: Ottelu
B23: Ylempi loppusarja | P23: Lyöty
B24: Alempi loppusarja | E24: 3 | F24: 0 | G24: 0 | H24: 1 | I24: 10 | K24: =PRODUCT((F24+G24)/E24) -> 0.00 | L24: =PRODUCT(H24/E24) -> 0.33 | M24: =PRODUCT(I24/E24) -> 3.33 | N24: =PRODUCT(I24/O24) -> 55.6 % | O24: 18 | P24: Tuotu
B25: KAIKKI | E25: =SUM(E22:E24) -> 3 | F25: =SUM(F22:F24) -> 0 | G25: =SUM(G22:G24) -> 0 | H25: =SUM(H22:H24) -> 1 | I25: =SUM(I22:I24) -> 10 | K25: =PRODUCT((F25+G25)/E25) -> 0.00 | L25: =PRODUCT(H25/E25) -> 0.33 | M25: =PRODUCT(I25/E25) -> 3.33 | N25: =PRODUCT(I25/O25) -> 55.6 % | O25: =SUM(O22:O24) -> 18 | P25: Kunnari
B27: Seurat | D27: Vilske-Pojat, Loimaa, kasvattajaseura
D28: LP Jun = Loimaan Palloilijat Junioripesis (2003)
D29: PöU = Pöytyän Urheilijat (1945)

Sheet MYP, MSS
B1: Sebastian Jaakkola | E1: 24.9.1987 Loimaa
B2: YKKÖSPESIS | E2: Runkosarja | L2: Runkosarja TOP-10 | Q2: Jatkosarjat | X2: SUOMENSARJA | AA2: Runkosarja | AH2: Runkosarja TOP-10 | AM2: Jatkosarjat
B3: Vuosi | C3: Sija | D3: Seura | E3: OTT | F3: KUN | G3: LÖI | H3: TOI | I3: KL | J3: KL-% | L3: LÖI | M3: TOI | N3: L+T | O3: KL | Q3: OTT | R3: KUN | S3: LÖI | T3: TOI | U3: KL | V3: KL-% | X3: Vuosi | Y3: Sija | Z3: Seura | AA3: OTT | AB3: KUN | AC3: LÖI | AD3: TOI | AE3: KL | AF3: KL-% | AH3: LÖI | AI3: TOI | AJ3: L+T | AK3: KL | AM3: OTT | AN3: KUN | AO3: LÖI | AP3: TOI | AQ3: KL | AR3: KL-%
X4: 2009 | Y4: 6. | Z4: LP Jun | AA4: 15 | AB4: 2 | AC4: 18 | AD4: 17 | AE4: 76 | AF4: 69.7 % | AG4: 109
X5: 2010 | Y5: 4. | Z5: LP Jun | AA5: 16 | AB5: 6 | AC5: 21 | AD5: 29 | AE5: 93 | AF5: 67.4 % | AG5: 138 | AH5: 7. | AI5: 7. | AJ5: 1. | AK5: 3. | AM5: 2 | AN5: 1 | AO5: 2 | AP5: 4 | AQ5: 13 | AR5: 54.2 % | AS5: 24
X6: 2011 | Y6: 1. | Z6: LP Jun | AA6: 18 | AB6: 5 | AC6: 15 | AD6: 36 | AE6: 105 | AF6: 67.7 % | AG6: 155 | AI6: 5. | AJ6: 10. | AK6: 6. | AM6: 7 | AN6: 0 | AO6: 8 | AP6: 11 | AQ6: 28 | AR6: 56.0 % | AS6: 50
X7: 2012 | Y7: 1. | Z7: LP Jun | AA7: 18 | AB7: 5 | AC7: 24 | AD7: 28 | AE7: 96 | AF7: 74.4 % | AG7: 129 | AJ7: 6. | AK7: 8. | AM7: 8 | AN7: 0 | AO7: 6 | AP7: 8 | AQ7: 29 | AR7: 64.4 % | AS7: 45
X9: 2015 | Y9: 1. | Z9: LP Jun | AA9: 18 | AB9: 3 | AC9: 10 | AD9: 37 | AE9: 117 | AF9: 80.7 % | AG9: 145 | AI9: 4. | AJ9: 9. | AK9: 1. | AM9: 8 | AN9: 0 | AO9: 6 | AP9: 10 | AQ9: 46 | AR9: 78.0 % | AS9: 59
B10: 2013 | C10: 10. | D10: LP Jun | E10: 22 | F10: 0 | G10: 3 | H10: 17 | I10: 77 | J10: 54.2 % | K10: 142 | Q10: 4 | R10: 0 | S10: 1 | T10: 1 | U10: 15 | V10: 60.0 % | W10: 25
B11: 2014 | C11: 12. | D11: LP Jun | E11: 22 | F11: 0 | G11: 2 | H11: 21 | I11: 100 | J11: 62.9 % | K11: 159
B12: 2016 | C12: 7. | D12: PöU | E12: 24 | F12: 1 | G12: 3 | H12: 16 | I12: 106 | J12: 58.9 % | K12: 180
B13: 2017 | C13: 3. | D13: PöU | E13: 23 | F13: 2 | G13: 2 | H13: 70 | I13: 133 | J13: 71.9 % | K13: 185 | Q13: 3 | R13: 1 | S13: 0 | T13: 6 | U13: 18 | V13: 62.1 % | W13: 29
X14: 2018 | Y14: 1. | Z14: LP Jun | AA14: 10 | AB14: 1 | AC14: 12 | AD14: 33 | AE14: 68 | AF14: 75.6 % | AG14: 90 | AI14: 2. | AJ14: 4. | AM14: 8 | AN14: 0 | AO14: 2 | AP14: 17 | AQ14: 56 | AR14: 75.7 % | AS14: 74
X15: 2019 | Y15: 1. | Z15: LP Jun | AA15: 1 | AB15: 0 | AC15: 1 | AD15: 0 | AE15: 5 | AF15: 83.3 % | AG15: 6 | AM15: 6 | AN15: 0 | AO15: 2 | AP15: 14 | AQ15: 33 | AR15: 67.3 % | AS15: 49
B17: 2023 | C17: 12. | D17: LP Jun | E17: 2 | F17: 0 | G17: 0 | H17: 0 | I17: 4 | J17: 30.8 % | K17: 13
B18: YHTEENSÄ | E18: =SUM(E4:E17) -> 93 | F18: =SUM(F4:F17) -> 3 | G18: =SUM(G4:G17) -> 10 | H18: =SUM(H4:H17) -> 124 | I18: =SUM(I4:I17) -> 420 | J18: =PRODUCT(I18/K18) -> 61.9 % | K18: =SUM(K4:K17) -> 679 | Q18: =SUM(Q4:Q17) -> 7 | R18: =SUM(R4:R17) -> 1 | S18: =SUM(S4:S17) -> 1 | T18: =SUM(T4:T17) -> 7 | U18: =SUM(U4:U17) -> 33 | V18: =PRODUCT(U18/W18) -> 61.1 % | W18: =SUM(W4:W17) -> 54 | X18: YHTEENSÄ | AA18: =SUM(AA4:AA17) -> 96 | AB18: =SUM(AB4:AB17) -> 22 | AC18: =SUM(AC4:AC17) -> 101 | AD18: =SUM(AD4:AD17) -> 180 | AE18: =SUM(AE4:AE17) -> 560 | AF18: =PRODUCT(AE18/AG18) -> 72.5 % | AG18: =SUM(AG4:AG17) -> 772 | AM18: =SUM(AM4:AM17) -> 39 | AN18: =SUM(AN4:AN17) -> 1 | AO18: =SUM(AO4:AO17) -> 26 | AP18: =SUM(AP4:AP17) -> 64 | AQ18: =SUM(AQ4:AQ17) -> 205 | AR18: =PRODUCT(AQ18/AS18) -> 68.1 % | AS18: =SUM(AS4:AS17) -> 301
B20: KAIKKI OTTELUT | E20: OTT | F20: KUN | G20: LÖI | H20: TOI | I20: KL | J20: KL-% | L20: ka/L | M20: ka/T | N20: ka/l+t | O20: ka/kl | R20: Seurat | T20: Vilske-Pojat, Loimaa, kasvattajaseura
B21: SUPERPESIS | E21: 3 | F21: 0 | G21: 0 | H21: 1 | I21: 10 | J21: 55.6 % | K21: =PRODUCT(I21/J21) -> 17.98561151 | L21: =PRODUCT((F21+G21)/E21) -> 0.00 | M21: =PRODUCT(H21/E21) -> 0.33 | N21: =PRODUCT((F21+G21+H21)/E21) -> 0.33 | O21: =PRODUCT(I21/E21) -> 3.33 | T21: LP Jun = Loimaan Palloilijat Junioripesis (2003)
B22: YKKÖSPESIS | E22: =PRODUCT(E18+Q18) -> 100 | F22: =PRODUCT(F18+R18) -> 4 | G22: =PRODUCT(G18+S18) -> 11 | H22: =PRODUCT(H18+T18) -> 131 | I22: =PRODUCT(I18+U18) -> 453 | J22: =PRODUCT(I22/K22) -> 61.8 % | K22: =PRODUCT(K18+W18) -> 733 | L22: =PRODUCT((F22+G22)/E22) -> 0.15 | M22: =PRODUCT(H22/E22) -> 1.31 | N22: =PRODUCT((F22+G22+H22)/E22) -> 1.46 | O22: =PRODUCT(I22/E22) -> 4.53 | T22: PöU = Pöytyän Urheilijat (1945)
B23: SUOMENSARJA | E23: =PRODUCT(AA18+AM18) -> 135 | F23: =PRODUCT(AB18+AN18) -> 23 | G23: =PRODUCT(AC18+AO18) -> 127 | H23: =PRODUCT(AD18+AP18) -> 244 | I23: =PRODUCT(AE18+AQ18) -> 765 | J23: =PRODUCT(I23/K23) -> 71.3 % | K23: =PRODUCT(AG18+AS18) -> 1073 | L23: =PRODUCT((F23+G23)/E23) -> 1.11 | M23: =PRODUCT(H23/E23) -> 1.81 | N23: =PRODUCT((F23+G23+H23)/E23) -> 2.92 | O23: =PRODUCT(I23/E23) -> 5.67
B24: YHTEENSÄ | E24: =SUM(E21:E23) -> 238 | F24: =SUM(F21:F23) -> 27 | G24: 138 | H24: 376 | I24: 1228 | J24: =PRODUCT(I24/K24) -> 67.3 % | K24: =SUM(K21:K23) -> 1823.985612 | L24: =PRODUCT((F24+G24)/E24) -> 0.69 | M24: =PRODUCT(H24/E24) -> 1.58 | N24: =PRODUCT((F24+G24+H24)/E24) -> 2.27 | O24: =PRODUCT(I24/E24) -> 5.16
